bitfinex/quotes_ETHUSD_20250524
["timestamp","ask_amount","ask_price","bid_price","bid_amount"]
[1748090264882,0.05,2557.9,2557.8,28.21804797]
[1748090265359,0.05,2557.9,2557.8,32.12765779]
[1748090265554,0.05,2557.9,2557.8,26.87382254]
[1748090265760,0.05,2557.9,2557.8,28.21804797]
[1748090266546,0.05,2557.9,2557.8,24.90522543]
[1748090267785,3.95945697,2557.9,2557.8,24.90522543]
[1748090267982,0.05,2557.9,2557.8,24.90522543]
[1748090271344,0.05,2557.9,2557.8,28.81483525]
[1748090271884,0.05,2557.9,2557.8,24.90522543]
[1748090272273,0.05,2557.9,2557.8,28.25542649]
[1748090279809,0.05,2557.9,2557.8,9.89422543]
[1748090280017,0.05,2557.9,2557.8,24.88522543]
[1748090281526,0.05,2557.9,2557.8,14.991]
[1748090281527,3.95945697,2557.9,2557.8,14.991]
[1748090281821,3.95945697,2557.9,2557.8,22.991]
[1748090282027,4.82301575,2557.9,2557.8,22.991]
[1748090282165,4.82301575,2557.9,2557.5,20.17939416]
[1748090282166,4.67671554,2557.6,2557.5,1.95516873]
[1748090282690,5.04032821,2557.6,2557.5,1.95516873]
[1748090287918,4.73922713,2557.2,2557.1,8.0]
[1748090292033,0.7584,2557.4,2557.1,9.34422543]
[1748090292243,0.7584,2557.7,2557.3,1.34422543]
[1748090292403,3.90998893,2557.6,2557.5,1.34422543]
[1748090292924,3.90977147,2557.7,2557.5,1.34422543]
[1748090293459,3.90991554,2557.6,2557.5,1.34422543]
[1748090294324,3.90991554,2557.6,2557.5,24.34022543]
[1748090294522,3.90981998,2557.7,2557.6,8.0]
[1748090295584,3.90981998,2557.7,2557.3,1.34422543]
[1748090295790,3.91022131,2557.4,2557.3,1.34422543]
[1748090296043,3.91022131,2557.4,2557.3,24.34022543]
[1748090296410,3.9101438,2557.5,2557.4,8.0]
[1748090300216,3.90993265,2557.6,2557.4,8.0]
[1748090300419,3.90993265,2557.6,2557.5,1.34422543]
[1748090300614,0.05,2557.9,2557.5,1.34422543]
[1748090300615,3.90981923,2557.7,2557.5,1.34422543]
[1748090300816,15.68256777,2557.9,2557.5,1.34422543]
[1748090301045,3.90971277,2557.8,2557.7,1.34422543]
[1748090301957,0.05,2557.9,2557.8,9.3248]
[1748090302125,0.05,2557.9,2557.8,25.42270254]
[1748090302462,3.95945697,2557.9,2557.8,23.526]
[1748090305235,0.05,2557.9,2557.8,23.526]
[1748090305430,3.95945697,2557.9,2557.8,23.526]
[1748090309683,3.95945697,2557.9,2557.8,8.55]
[1748090309892,3.95945697,2557.9,2557.8,23.525]
[1748090310750,3.95945697,2557.9,2557.8,22.975]
[1748090310998,4.82953313,2557.9,2557.8,22.975]
[1748090312794,3.91006842,2557.5,2557.4,1.34422543]
[1748090313000,3.91006842,2557.5,2557.4,24.31922543]
[1748090314061,3.91006842,2557.5,2557.4,22.975]
[1748090314260,3.91006842,2557.5,2557.4,24.31922543]
[1748090315404,3.91006842,2557.5,2557.4,8.0]
[1748090315903,3.91006842,2557.5,2557.4,9.34422543]
[1748090319219,0.92007616,2557.9,2557.5,8.0]
[1748090319220,0.05,2557.9,2557.5,8.0]
[1748090319424,15.68145697,2557.9,2557.8,1.34422543]
[1748090319622,16.04464957,2557.9,2557.8,16.32022543]
[1748090319925,4.32264957,2557.9,2557.8,24.32022543]
[1748090320224,3.91006842,2557.5,2557.4,1.89422543]
[1748090320425,3.91006842,2557.5,2557.4,16.87022543]
[1748090322419,3.90999321,2557.6,2557.5,8.55]
[1748090322682,3.90999321,2557.6,2557.5,9.89422543]
[1748090332233,3.91006842,2557.5,2557.4,14.976]
[1748090332441,3.91006842,2557.5,2557.4,15.526]
[1748090334255,3.91006842,2557.5,2557.4,23.526]
[1748090334834,3.91006842,2557.5,2557.4,23.506]
[1748090335143,3.90999868,2557.6,2557.5,8.55]
[1748090335297,3.90999868,2557.6,2557.5,9.89422543]
[1748090337635,3.90999868,2557.6,2557.5,1.89422543]
[1748090337832,3.90999868,2557.6,2557.5,24.85022543]
[1748090339911,3.9098439,2557.7,2557.6,8.0]
[1748090340531,0.05,2557.9,2557.7,0.55]
[1748090340726,3.95949311,2557.9,2557.8,0.55]
[1748090341066,4.32368949,2557.9,2557.8,1.89422543]
[1748090344261,0.05,2557.9,2557.8,2.65812543]
[1748090344467,0.05,2557.9,2557.8,11.72393797]
[1748090350243,3.95945697,2557.9,2557.8,24.84822543]
[1748090350580,3.95945697,2557.9,2557.8,9.89422543]
[1748090350780,3.95945697,2557.9,2557.8,23.504]
[1748090351686,3.95945697,2557.9,2557.8,24.84822543]
[1748090352742,0.05,2557.9,2557.8,28.10874797]
[1748090353051,0.05,2557.9,2557.8,32.01835779]
[1748090355654,0.05,2557.9,2557.8,28.10874797]
[1748090356882,0.05,2557.9,2557.8,14.954]
[1748090357081,3.95945697,2557.9,2557.8,14.954]
[1748090357383,3.95945697,2557.9,2557.8,22.954]
[1748090358191,4.75255697,2557.9,2557.8,8.0]
[1748090358393,4.75255697,2557.9,2557.8,22.953]
[1748090358766,4.75255697,2557.9,2557.8,8.0]
[1748090358968,4.75255697,2557.9,2557.8,22.953]
[1748090359186,3.95945697,2557.9,2557.8,22.953]
[1748090360675,0.05,2557.9,2557.8,24.2943]
[1748090361076,3.95945697,2557.9,2557.8,23.503]
[1748090363299,0.05,2557.9,2557.8,23.503]
[1748090363997,0.05,2557.9,2557.8,28.20390982]
[1748090365377,0.05,2557.9,2557.8,24.2943]
[1748090365579,0.05,2557.9,2557.8,27.64010684]
[1748090367602,0.05,2557.9,2557.8,31.54971666]
[1748090370021,0.05,2557.9,2557.8,48.42571666]
[1748090370792,0.05,2557.9,2557.8,43.94710684]
[1748090371115,0.05,2557.9,2557.8,43.70580684]
[1748090374008,0.05,2557.9,2557.8,45.05003227]
[1748090376345,3.95945697,2557.9,2557.8,33.70422543]
[1748090376543,3.95945697,2557.9,2557.8,16.82822543]
[1748090376750,3.95945697,2557.9,2557.8,24.82822543]
[1748090377044,3.95945697,2557.9,2557.8,16.82822543]
[1748090377216,3.95945697,2557.9,2557.8,24.82822543]
[1748090377723,3.95945697,2557.9,2557.8,22.934]
[1748090379252,3.95945697,2557.9,2557.8,24.27822543]
[1748090384952,3.95945697,2557.9,2557.8,24.27922543]
[1748090386651,0.05,2557.9,2557.8,24.82922543]
[1748090389556,3.95945697,2557.9,2557.8,24.82922543]
[1748090392465,0.05,2557.9,2557.8,24.82922543]
[1748090393990,3.95945697,2557.9,2557.8,24.82922543]
[1748090395761,3.95945697,2557.9,2557.8,16.82922543]
[1748090399899,3.91006842,2557.5,2557.4,16.877]
[1748090400056,3.91006842,2557.5,2557.4,41.68822543]
[1748090402039,3.91006842,2557.5,2557.4,24.877]
[1748090402241,5.60605818,2557.5,2557.4,31.794]
[1748090402459,3.91022131,2557.4,2557.3,14.917]
[1748090403278,4.74127422,2557.3,2557.2,2.01759548]
[1748090403590,7.29235933,2557.3,2557.2,2.01759548]
[1748090404386,7.65655675,2557.3,2557.2,2.01759548]
[1748090407064,19.37855675,2557.3,2557.2,2.01759548]
[1748090407611,19.01435933,2557.3,2557.2,0.06242675]
[1748090408904,7.29235933,2557.3,2557.2,0.06242675]
[1748090409053,16.46327422,2557.3,2557.2,0.06242675]
[1748090409669,4.74127422,2557.3,2557.2,0.06242675]
[1748090409948,16.46427422,2557.3,2557.2,0.06242675]
[1748090411956,16.41427422,2557.3,2557.2,0.06242675]
[1748090412671,16.77709457,2557.3,2557.2,0.06242675]
[1748090412881,18.93233513,2557.3,2557.2,0.06242675]
[1748090417209,18.89013513,2557.3,2557.2,0.06242675]
[1748090418609,29.03013513,2557.3,2557.2,0.06242675]
[1748090419905,29.49437888,2557.3,2557.2,0.06242675]
[1748090420127,17.77137888,2557.3,2557.2,0.06242675]
[1748090420339,0.8270641,2557.3,2557.2,0.06242675]
[1748090420519,4.73743832,2557.3,2557.2,0.06242675]
[1748090420840,4.37461797,2557.3,2557.2,0.06242675]
[1748090421183,3.91037422,2557.3,2557.2,0.06242675]
[1748090427037,4.27366195,2557.3,2557.2,0.06242675]
[1748090429330,7.08715039,2557.3,2557.2,0.06242675]
[1748090430747,5.09626195,2557.3,2557.2,0.06242675]
[1748090440875,17.28812519,2557.3,2557.2,0.06242675]
[1748090442380,16.82226195,2557.3,2557.2,0.06242675]
[1748090443666,5.09626195,2557.3,2557.2,0.06242675]
[1748090443867,4.27366195,2557.3,2557.2,0.06242675]
[1748090444184,4.27366195,2557.3,2557.2,1.40665218]
[1748090444355,0.36328773,2557.3,2557.2,11.2000374]
[1748090444555,0.36328773,2557.3,2557.2,11.7500374]
[1748090444864,4.52709529,2557.5,2557.4,0.7752]
[1748090445065,4.52709529,2557.5,2557.4,25.02542543]
[1748090445277,3.91006842,2557.5,2557.4,25.02542543]
[1748090445486,3.91006842,2557.5,2557.4,28.18602917]
[1748090450710,3.91006842,2557.5,2557.4,11.38580374]
[1748090450872,3.91006842,2557.5,2557.4,8.0]
[1748090451073,3.91037422,2557.3,2557.2,0.06242675]
[1748090452299,4.274073,2557.3,2557.2,0.06242675]
[1748090452815,5.058773,2557.3,2557.2,0.06242675]
[1748090452991,6.34668155,2557.3,2557.2,0.06242675]
[1748090455269,6.96370842,2557.3,2557.2,0.06242675]
[1748090456992,6.34668155,2557.3,2557.2,0.06242675]
[1748090457401,8.69368155,2557.3,2557.2,0.06242675]
[1748090457702,6.34668155,2557.3,2557.2,0.06242675]
[1748090461710,18.07268155,2557.3,2557.2,0.06242675]
[1748090464221,6.34668155,2557.3,2557.2,0.06242675]
[1748090464405,4.274073,2557.3,2557.2,0.06242675]
[1748090464591,16.000073,2557.3,2557.2,0.06242675]
[1748090464792,4.274073,2557.3,2557.2,0.06242675]
[1748090473957,4.274073,2557.3,2557.2,2.16775218]
[1748090474424,4.274073,2557.3,2557.2,0.82352675]
[1748090474606,3.91037422,2557.3,2557.2,0.82352675]
[1748090475761,3.91037422,2557.3,2557.2,1.84030197]
[1748090478666,4.27402226,2557.3,2557.2,1.84030197]
[1748090480468,4.27402226,2557.3,2557.2,0.06242675]
[1748090488144,4.27402226,2557.3,2557.2,1.40665218]
[1748090489966,15.99902226,2557.3,2557.2,1.40665218]
[1748090491378,15.99902226,2557.3,2557.2,0.06242675]
[1748090500702,16.80322226,2557.3,2557.2,0.06242675]
[1748090500862,18.87456889,2557.3,2557.2,0.06242675]
[1748090501587,29.01456889,2557.3,2557.2,0.06242675]
[1748090503566,29.63613451,2557.3,2557.2,0.06242675]
[1748090512581,29.01456889,2557.3,2557.2,0.06242675]
[1748090516079,17.28956889,2557.3,2557.2,0.06242675]
[1748090516281,28.21236889,2557.3,2557.2,0.06242675]
[1748090518323,28.6779088,2557.3,2557.2,0.06242675]
[1748090518818,16.9509088,2557.3,2557.2,0.06242675]
[1748090519023,26.60656217,2557.3,2557.2,0.06242675]
[1748090521657,14.87956217,2557.3,2557.2,0.06242675]
[1748090521851,26.60656217,2557.3,2557.2,0.06242675]
[1748090522552,16.46656217,2557.3,2557.2,0.06242675]
[1748090522722,18.64434936,2557.3,2557.2,0.06242675]
[1748090523244,18.17880945,2557.3,2557.2,0.06242675]
[1748090524269,18.98800945,2557.3,2557.2,0.06242675]
[1748090529475,18.62436141,2557.3,2557.2,0.06242675]
[1748090530183,18.98841795,2557.3,2557.2,0.06242675]
[1748090534233,29.12841795,2557.3,2557.2,0.06242675]
[1748090535675,17.40141795,2557.3,2557.2,0.06242675]
[1748090535894,29.12841795,2557.3,2557.2,0.06242675]
[1748090536173,17.40141795,2557.3,2557.2,0.06242675]
[1748090536377,29.12841795,2557.3,2557.2,0.06242675]
[1748090538478,31.47441795,2557.3,2557.2,0.06242675]
[1748090538773,29.12841795,2557.3,2557.2,0.06242675]
[1748090539875,29.12941795,2557.3,2557.2,0.06242675]
[1748090540235,17.40141795,2557.3,2557.2,0.06242675]
[1748090540437,26.14243076,2557.3,2557.2,0.06242675]
[1748090540838,16.00243076,2557.3,2557.2,0.06242675]
[1748090541238,4.27443076,2557.3,2557.2,0.88492675]
[1748090541433,4.27443076,2557.3,2557.2,2.22915218]
[1748090541647,4.27443076,2557.3,2557.2,3.2520674]
[1748090543696,4.27443076,2557.3,2557.2,1.90784197]
[1748090547615,4.27443076,2557.3,2557.2,0.88492675]
[1748090547799,4.27443076,2557.3,2557.2,0.06242675]
[1748090547967,5.08673076,2557.3,2557.2,0.06242675]
[1748090551110,5.70817995,2557.3,2557.2,0.06242675]
[1748090553706,5.08673076,2557.3,2557.2,0.06242675]
[1748090554042,9.03672385,2557.3,2557.2,0.06242675]
[1748090557852,19.17672385,2557.3,2557.2,0.06242675]
[1748090560019,20.52094928,2557.3,2557.2,0.06242675]
[1748090566670,32.24894928,2557.3,2557.2,0.06242675]
[1748090569567,34.59494928,2557.3,2557.2,0.06242675]
[1748090573169,49.43394928,2557.3,2557.2,0.06242675]
[1748090574168,34.01572385,2557.3,2557.2,0.06242675]
[1748090574347,45.74372385,2557.3,2557.2,0.06242675]
[1748090575973,27.17672385,2557.3,2557.2,0.06242675]
[1748090576163,52.93142385,2557.3,2557.2,0.06242675]
[1748090577272,33.20342385,2557.3,2557.2,0.06242675]
[1748090577476,44.93142385,2557.3,2557.2,0.06242675]
[1748090578468,33.20342385,2557.3,2557.2,0.06242675]
[1748090578647,44.93142385,2557.3,2557.2,0.06242675]
[1748090579146,53.73602385,2557.3,2557.2,0.06242675]
[1748090579536,56.08202385,2557.3,2557.2,0.06242675]
[1748090580039,3.91144488,2556.6,2556.3,1.34422543]
[1748090580237,3.91175089,2556.4,2556.3,1.34422543]
[1748090580667,3.91175089,2556.4,2556.3,2.16312543]
[1748090581381,4.27580743,2556.4,2556.3,2.16312543]
[1748090585749,4.27580743,2556.4,2556.3,0.8189]
[1748090585967,4.27580743,2556.4,2556.3,2.66552254]
[1748090590093,4.27580743,2556.4,2556.3,4.00974797]
[1748090594528,4.27580743,2556.4,2556.3,12.00974797]
[1748090594687,4.27580743,2556.4,2556.3,12.55974797]
[1748090594688,0.36405654,2556.4,2556.3,12.55974797]
[1748090595387,4.27580743,2556.4,2556.3,12.55974797]
[1748090595555,3.91175089,2556.4,2556.3,12.55974797]
[1748090597009,3.91175089,2556.4,2556.3,11.21552254]
[1748090597162,3.91175089,2556.4,2556.3,12.55974797]
[1748090597886,3.91175089,2556.4,2556.3,12.00974797]
[1748090600070,3.91175089,2556.4,2556.3,26.83074797]
[1748090600270,3.91175089,2556.4,2556.3,8.8189]
[1748090600786,15.63975089,2556.4,2556.3,8.8189]
[1748090600984,15.63975089,2556.4,2556.3,0.8189]
[1748090601185,3.91190392,2556.3,2556.2,8.0]
[1748090602687,4.27633692,2556.3,2556.2,8.0]
[1748090604108,4.2762741,2556.3,2556.2,8.0]
[1748090607019,3.91205695,2556.2,2556.0,0.7957]
[1748090607226,3.91205695,2556.2,2555.9,8.0]
[1748090607227,3.91236306,2556.0,2555.9,8.0]
[1748090607718,3.91251613,2555.9,2555.8,15.5863]
[1748090608028,3.91251613,2555.9,2555.8,23.5863]
[1748090610040,3.91251613,2555.9,2555.8,22.822]
[1748090613235,15.64151613,2555.9,2555.8,22.822]
[1748090613550,3.91234965,2556.1,2555.9,8.0]
[1748090613850,3.91221,2556.1,2556.0,0.7643]
[1748090614350,15.64221,2556.1,2556.0,0.7643]
[1748090614767,16.00625092,2556.1,2556.0,0.7643]
[1748090615659,4.27625092,2556.1,2556.0,0.7643]
[1748090615968,0.36404092,2556.1,2556.0,15.65121105]
[1748090616135,3.91138229,2556.7,2556.4,0.55]
[1748090616466,3.91148042,2556.6,2556.5,23.6068]
[1748090616764,3.91148042,2556.6,2556.5,8.8008]
[1748090616914,3.91148042,2556.6,2556.5,23.6068]
[1748090617123,3.91148042,2556.6,2556.5,26.02248]
[1748090617525,3.91148042,2556.6,2556.5,27.36670543]
[1748090618267,3.91134932,2556.7,2556.6,8.0]
[1748090618438,3.91134932,2556.7,2556.6,9.34422543]
[1748090618866,3.91134932,2556.7,2556.6,9.89422543]
[1748090619023,3.91134932,2556.7,2556.6,12.68589597]
[1748090619538,3.91113892,2556.8,2556.7,0.55]
[1748090621566,3.9110649,2556.9,2556.8,1.3508]
[1748090621862,15.63872992,2557.1,2556.8,10.69502543]
[1748090622027,3.91095203,2557.0,2556.9,8.0]
[1748090622363,3.91095203,2557.0,2556.9,1.06950254]
[1748090622564,3.91098595,2556.9,2556.8,2.69502543]
[1748090628574,3.91088353,2557.0,2556.8,2.69502543]
[1748090629483,3.91098595,2556.9,2556.8,2.69502543]
[1748090630677,3.91098595,2556.9,2556.5,14.806]
[1748090630678,3.91129189,2556.7,2556.5,14.806]
[1748090630845,3.91159788,2556.5,2556.4,24.14522543]
[1748090631170,3.91159788,2556.5,2556.4,26.63771797]
[1748090633947,3.91137678,2556.7,2556.5,8.0]
[1748090634147,11.726,2557.0,2556.6,2.17192543]
[1748090634352,3.91126599,2556.8,2556.6,2.17192543]
[1748090634565,3.91113892,2556.8,2556.6,2.17192543]
[1748090634877,3.91113892,2556.8,2556.7,1.01719254]
[1748090636877,3.91113892,2556.8,2556.7,9.01719254]
[1748090637598,5.92526127,2557.9,2556.8,0.55]
[1748090637599,15.63678851,2557.1,2556.8,0.55]
[1748090637764,15.63678851,2557.1,2556.9,1.34422543]
[1748090638209,3.91087088,2557.0,2556.9,1.34422543]
[1748090638363,3.91087088,2557.0,2556.9,10.33364797]
[1748090640196,3.91074298,2557.1,2556.9,25.11864797]
[1748090640405,15.63656062,2557.2,2556.9,25.11864797]
[1748090640575,3.910833,2557.0,2556.9,25.66864797]
[1748090640958,3.91075661,2557.1,2556.9,25.66864797]
[1748090641200,3.910833,2557.0,2556.9,25.66864797]
[1748090642102,3.91072409,2557.1,2556.9,26.43784797]
[1748090642308,3.91072409,2557.1,2557.0,9.34422543]
[1748090642696,0.05,2557.9,2557.2,0.7692]
[1748090642894,0.05,2557.9,2557.6,1.34422543]
[1748090643211,3.90976267,2557.7,2557.6,16.89842543]
[1748090643371,3.90976267,2557.7,2557.6,24.89842543]
[1748090643868,4.27340425,2557.8,2557.6,24.89842543]
[1748090644099,3.90966768,2557.8,2557.7,8.0]
[1748090652194,3.91006842,2557.5,2557.4,1.34422543]
[1748090652323,3.91006842,2557.5,2557.4,9.34422543]
[1748090656246,3.91006842,2557.5,2557.3,14.782]
[1748090656247,3.91022131,2557.4,2557.3,14.782]
[1748090656610,3.91022131,2557.4,2557.3,22.782]
[1748090656809,3.91022131,2557.4,2557.3,14.782]
[1748090657010,3.91022131,2557.4,2557.3,24.12622543]
[1748090658473,15.63322131,2557.4,2557.3,24.12622543]
[1748090659565,15.63322131,2557.4,2557.3,9.34422543]
[1748090660077,15.63322131,2557.4,2557.3,8.0]
[1748090660639,3.91037422,2557.3,2557.2,14.782]
[1748090664594,4.27415933,2557.3,2557.2,14.782]
[1748090665205,5.02555933,2557.3,2557.2,14.782]
[1748090665379,3.910833,2557.0,2556.9,8.0]
[1748090665573,15.634833,2557.0,2556.9,8.0]
[1748090670491,3.91098595,2556.9,2556.8,1.34422543]
[1748090671632,15.63598595,2556.9,2556.8,1.34422543]
[1748090672429,3.91098595,2556.9,2556.8,1.34422543]
[1748090672626,15.63598595,2556.9,2556.8,1.34422543]
[1748090674100,3.91098595,2556.9,2556.8,3.75554797]
[1748090674404,15.63590886,2557.0,2556.9,8.0]
[1748090674731,15.63590886,2557.0,2556.9,9.34422543]
[1748090678617,3.91103123,2556.9,2556.6,0.7845]
[1748090678822,3.91113892,2556.8,2556.7,9.34422543]
[1748090681298,3.91113892,2556.8,2556.7,9.79200338]
[1748090684320,3.91113892,2556.8,2556.7,9.34422543]
[1748090691212,3.91113892,2556.8,2556.7,1.34422543]
[1748090691541,4.27579909,2556.8,2556.7,1.34422543]
[1748090693867,3.91144488,2556.6,2556.5,24.11422543]
[1748090700376,3.91144488,2556.6,2556.5,16.11422543]
[1748090700536,3.91190392,2556.3,2556.2,14.756]
[1748090700736,15.63790392,2556.3,2556.2,22.756]
[1748090700982,15.63790392,2556.3,2556.2,14.756]
[1748090701145,15.63790392,2556.3,2556.2,22.756]
[1748090701629,16.00210679,2556.3,2556.2,22.756]
[1748090702732,15.63790392,2556.3,2556.2,22.756]
[1748090704131,3.91221,2556.1,2556.0,1.34422543]
[1748090704336,3.91251613,2555.9,2555.8,31.643]
[1748090704531,15.63951613,2555.9,2555.8,39.643]
[1748090704861,15.63951613,2555.9,2555.8,31.643]
[1748090705153,15.63951613,2555.9,2555.8,39.643]
[1748090705356,4.73656922,2555.8,2555.7,2.01265638]
[1748090705560,4.73656922,2555.8,2555.1,0.05]
[1748090705561,4.73748797,2555.2,2555.1,0.05]
[1748090705760,16.46448797,2555.2,2555.1,0.05]
[1748090705932,18.23297793,2555.2,2555.1,0.05]
[1748090706129,18.59548926,2555.2,2555.1,0.05]
[1748090707287,6.86848926,2555.2,2555.1,0.05]
[1748090707471,18.59648926,2555.2,2555.1,0.05]
[1748090711070,18.23397793,2555.2,2555.1,0.05]
[1748090716461,22.34897793,2555.2,2555.1,0.05]
[1748090716997,18.23397793,2555.2,2555.1,0.05]
[1748090717488,6.50597793,2555.2,2555.1,0.05]
[1748090717673,4.73748797,2555.2,2555.1,0.05]
[1748090717891,3.9134947,2555.3,2555.1,1.39422543]
[1748090718051,3.91358797,2555.2,2555.1,9.39422543]
[1748090718251,3.91358797,2555.2,2555.1,0.05]
[1748090718554,4.69629188,2555.2,2555.1,0.05]
[1748090724900,4.69629188,2555.2,2555.1,0.05]
[1748090725800,5.05695954,2555.2,2555.1,0.05]
[1748090733856,16.79395954,2555.2,2555.1,0.05]
[1748090734144,0.36066766,2555.2,2555.1,2.16182543]
[1748090734514,0.36066766,2555.2,2555.1,2.20095952]
[1748090734714,0.36066766,2555.2,2555.1,2.16182543]
[1748090735662,3.91347139,2555.3,2555.1,2.16182543]
[1748090735849,3.91347139,2555.3,2555.2,8.0]
[1748090736663,3.91328167,2555.4,2555.3,0.8124]
[1748090736963,3.91328167,2555.4,2555.3,2.15662543]
[1748090740151,3.91315014,2555.5,2555.3,2.15662543]
[1748090740333,3.91315014,2555.5,2555.4,0.21566254]
[1748090743076,3.91315014,2555.5,2555.3,24.91062543]
[1748090743077,3.91328167,2555.4,2555.3,24.91062543]
[1748090748131,3.91328167,2555.4,2555.3,23.5664]
[1748090748982,3.91358797,2555.2,2555.1,0.05]
[1748090749153,15.64658797,2555.2,2555.1,0.05]
[1748090750476,15.64658797,2555.2,2555.1,1.39422543]
[1748090752977,15.64658797,2555.2,2555.1,0.05]
[1748090755494,17.68028278,2555.2,2555.1,0.05]
[1748090756255,18.04319926,2555.2,2555.1,0.05]
[1748090756953,18.04419926,2555.2,2555.1,0.05]
[1748090760869,4.27650445,2555.2,2555.1,0.05]
[1748090761091,16.01150445,2555.2,2555.1,0.05]
[1748090761467,4.27650445,2555.2,2555.1,0.05]
[1748090761670,16.01150445,2555.2,2555.1,0.05]
[1748090762059,15.64858797,2555.2,2555.1,0.05]
[1748090764066,17.96828526,2555.2,2555.1,0.05]
[1748090766064,18.43128836,2555.2,2555.1,0.05]
[1748090768971,19.20818836,2555.2,2555.1,0.05]
[1748090770815,18.74518526,2555.2,2555.1,0.05]
[1748090776316,7.01018526,2555.2,2555.1,0.05]
[1748090776536,5.05398045,2555.2,2555.1,0.05]
[1748090776691,32.15954435,2555.2,2555.1,0.05]
[1748090777652,5.67554435,2555.2,2555.1,0.05]
[1748090777939,16.63464435,2555.2,2555.1,0.05]
[1748090779527,16.47880692,2555.2,2555.1,0.05]
[1748090779731,4.74280692,2555.2,2555.1,0.05]
[1748090779892,16.47880692,2555.2,2555.1,0.05]
[1748090780626,20.13584001,2555.2,2555.1,0.05]
[1748090781005,19.67011354,2555.2,2555.1,0.05]
[1748090781522,7.93411354,2555.2,2555.1,0.05]
[1748090781725,16.01308045,2555.2,2555.1,0.05]
[1748090781923,16.63464435,2555.2,2555.1,0.05]
[1748090784557,16.01308045,2555.2,2555.1,0.05]
[1748090784884,4.27708045,2555.2,2555.1,0.05]
[1748090785175,16.01308045,2555.2,2555.1,0.05]
[1748090790256,18.05234981,2555.2,2555.1,0.05]
[1748090790759,18.86504981,2555.2,2555.1,0.05]
[1748090790970,19.33120291,2555.2,2555.1,0.05]
[1748090791954,19.48661371,2555.2,2555.1,0.05]
[1748090793159,18.86504981,2555.2,2555.1,0.05]
[1748090797537,4.27708045,2555.2,2555.1,0.881]
[1748090798061,4.89891073,2555.2,2555.1,0.05]
[1748090800880,5.67321073,2555.2,2555.1,0.05]
[1748090805547,16.63591073,2555.2,2555.1,0.05]
[1748090817708,4.89891073,2555.2,2555.1,0.05]
[1748090817869,16.63491073,2555.2,2555.1,0.8621]
[1748090818089,16.63491073,2555.2,2555.1,0.05]
[1748090818484,16.01308045,2555.2,2555.1,0.05]
[1748090818687,19.08192238,2555.2,2555.1,0.05]
[1748090819925,19.70375266,2555.2,2555.1,0.05]
[1748090826739,4.89891073,2555.2,2555.1,0.05]
[1748090826900,4.89891073,2555.2,2555.1,0.8805]
[1748090827235,16.63491073,2555.2,2555.1,0.8805]
[1748090827638,16.01308045,2555.2,2555.1,0.8805]
[1748090829140,16.47974215,2555.2,2555.1,0.8805]
[1748090830545,19.59525025,2555.2,2555.1,0.05]
[1748090831509,19.75041883,2555.2,2555.1,0.05]
[1748090834929,19.12858855,2555.2,2555.1,0.05]
[1748090835129,19.12977985,2555.2,2555.1,0.05]
[1748090835964,21.28300528,2555.2,2555.1,0.05]
[1748090836159,36.01500528,2555.2,2555.1,0.05]
[1748090836328,46.15500528,2555.2,2555.1,0.05]
[1748090836531,48.50300528,2555.2,2555.1,0.05]
[1748090836958,46.15500528,2555.2,2555.1,0.05]
[1748090838919,4.72289432,2555.0,2554.9,0.04873459]
[1748090839149,7.14926053,2555.0,2554.9,0.04873459]
[1748090839355,7.69926053,2555.0,2554.9,0.04873459]
[1748090839557,17.83926053,2555.0,2554.9,0.04873459]
[1748090840156,28.55194431,2555.0,2554.9,0.04873459]
[1748090841791,32.66994431,2555.0,2554.9,0.04873459]
[1748090842906,49.57194431,2555.0,2554.9,0.04873459]
[1748090844893,3.91512019,2554.2,2554.1,0.05]
[1748090845063,15.65412019,2554.2,2554.1,0.05]
[1748090845494,18.76962829,2554.2,2554.1,0.05]
[1748090845685,19.13431207,2554.2,2554.1,0.05]
[1748090847398,19.59883434,2554.2,2554.1,0.05]
[1748090848285,4.53411606,2554.5,2554.2,2.75276989]
[1748090848286,0.61936303,2554.5,2554.2,2.75276989]
[1748090848532,1.23447808,2555.1,2554.5,0.8267]
[1748090848698,3.91384781,2555.1,2555.0,2.17092543]
[1748090851243,3.91384781,2555.1,2555.0,0.8267]
[1748090852198,3.91384781,2555.1,2555.0,2.17092543]
[1748090854143,3.91384781,2555.1,2555.0,0.8267]
[1748090854346,3.91435393,2554.7,2554.6,8.0]
[1748090854507,3.91435393,2554.7,2554.6,10.40782254]
[1748090854931,3.91435393,2554.7,2554.6,11.18662254]
[1748090855101,3.91435393,2554.7,2554.6,12.53084797]
[1748090862078,3.91435393,2554.7,2554.6,2.12302543]
[1748090862223,3.91435393,2554.7,2554.6,0.7788]
[1748090862940,3.9146604,2554.5,2554.4,2.12852543]
[1748090863645,3.9146604,2554.5,2554.4,0.7843]
[1748090865349,3.9146604,2554.5,2554.4,2.12852543]
[1748090867688,3.9146604,2554.5,2554.4,1.34422543]
[1748090868685,3.91496691,2554.3,2554.2,8.7855]
[1748090877521,3.91512019,2554.2,2554.1,24.54097529]
[1748090880568,15.65312019,2554.2,2554.1,24.54097529]
[1748090880850,15.65312019,2554.2,2554.1,27.07362282]
[1748090881657,1.39806889,2555.0,2554.1,27.07362282]
[1748090881854,15.65213591,2554.9,2554.8,1.34422543]
[1748090882077,16.01605043,2554.9,2554.8,1.34422543]
[1748090882260,19.55424295,2554.9,2554.8,1.34422543]
[1748090883341,16.01605043,2554.9,2554.8,1.34422543]
[1748090886670,16.01605043,2554.9,2554.4,1.34422543]
[1748090886671,3.91450716,2554.6,2554.4,1.34422543]
[1748090886966,3.9146604,2554.5,2554.4,1.34422543]
[1748090889745,3.91481365,2554.4,2554.3,8.8323]
[1748090889979,3.91481365,2554.4,2554.3,10.17652543]
[1748090890143,3.91481365,2554.4,2554.3,12.69087797]
[1748090891283,3.91481365,2554.4,2554.3,12.73021613]
[1748090893404,3.91480736,2554.5,2554.3,12.73021613]
[1748090893614,3.91480736,2554.5,2554.4,1.34422543]
[1748090893780,3.91480736,2554.5,2554.4,1.38356205]
[1748090894099,3.91480736,2554.5,2554.4,12.14828351]
[1748090900117,3.91388769,2555.1,2554.6,0.7872]
[1748090900118,3.91375955,2555.1,2554.6,0.7872]
[1748090900284,14.916,2555.8,2555.0,1.34422543]
[1748090900285,15.65066081,2555.2,2555.0,1.34422543]
[1748090900484,3.91366081,2555.2,2555.1,10.13142543]